[Event "Titled Tuesday Blitz May 10 Late 2022"]
[White "Bettalli, Francesco"]
[Black "Gomez Ledo, Roberto Carlos"]
[WhiteFideId "2816453"]
[BlackFideId "3507076"]
[WhiteElo "2216"]
[BlackElo "2379"]
[Result "1-0"]
[Round "03"]
[TimeControl "180+1"]
[Date "2022.05.11"]
[WhiteClock "0:01:38"]
[BlackClock "0:00:17"]

1. d4 {[%clk 0:03:00]}  Nf6 {[%clk 0:02:59]} 2. Nc3 {[%clk 0:03:01]}  d6 {[%clk 0:02:56]} 3. e4 {[%clk 0:03:00]}  e5 {[%clk 0:02:56]} 4. Nge2 {[%clk 0:02:59]}  Be7 {[%clk 0:02:55]} 5. g3 {[%clk 0:02:58]}  c6 {[%clk 0:02:54]} 6. Bg2 {[%clk 0:02:58]}  b6 {[%clk 0:02:50]} 7. O-O {[%clk 0:02:58]}  Nbd7 {[%clk 0:02:48]} 8. h3 {[%clk 0:02:59]}  h5 {[%clk 0:02:47]} 9. f4 {[%clk 0:02:58]}  Bb7 {[%clk 0:02:45]} 10. dxe5 {[%clk 0:02:57]}  dxe5 {[%clk 0:02:45]} 11. f5 {[%clk 0:02:58]}  a6 {[%clk 0:02:42]} 12. Be3 {[%clk 0:02:57]}  Bc5 {[%clk 0:02:41]} 13. Qc1 {[%clk 0:02:57]}  Qe7 {[%clk 0:02:39]} 14. Kh1 {[%clk 0:02:56]}  Bxe3 {[%clk 0:02:32]} 15. Qxe3 {[%clk 0:02:56]}  h4 {[%clk 0:02:31]} 16. g4 {[%clk 0:02:56]}  Nh7 {[%clk 0:02:32]} 17. Rad1 {[%clk 0:02:53]}  Qc5 {[%clk 0:02:26]} 18. Qxc5 {[%clk 0:02:47]}  Nxc5 {[%clk 0:02:25]} 19. b4 {[%clk 0:02:48]}  Nd7 {[%clk 0:02:21]} 20. Na4 {[%clk 0:02:48]}  O-O-O {[%clk 0:02:16]} 21. Nec3 {[%clk 0:02:47]}  Kc7 {[%clk 0:02:14]} 22. Rd2 {[%clk 0:02:44]}  Ndf6 {[%clk 0:02:09]} 23. Rfd1 {[%clk 0:02:43]}  Rxd2 {[%clk 0:02:08]} 24. Rxd2 {[%clk 0:02:44]}  Ng5 {[%clk 0:02:08]} 25. Kg1 {[%clk 0:02:41]}  Ra8 {[%clk 0:01:54]} 26. Kf2 {[%clk 0:02:40]}  a5 {[%clk 0:01:49]} 27. b5 {[%clk 0:02:39]}  c5 {[%clk 0:01:47]} 28. Ke3 {[%clk 0:02:39]}  Re8 {[%clk 0:01:34]} 29. Nb2 {[%clk 0:02:39]}  Re7 {[%clk 0:01:12]} 30. Nc4 {[%clk 0:02:39]}  Ne8 {[%clk 0:01:12]} 31. Na4 {[%clk 0:02:29]}  Nf6 {[%clk 0:01:06]} 32. Naxb6 {[%clk 0:02:09]}  Bxe4 {[%clk 0:00:52]} 33. Bxe4 {[%clk 0:02:08]}  Ngxe4 {[%clk 0:00:52]} 34. Nd5+ {[%clk 0:02:05]}  Nxd5+ {[%clk 0:00:37]} 35. Rxd5 {[%clk 0:02:06]}  Ng5 {[%clk 0:00:37]} 36. Rxc5+ {[%clk 0:02:05]}  Kb8 {[%clk 0:00:37]} 37. Nxa5 {[%clk 0:02:02]}  Re8 {[%clk 0:00:32]} 38. Nc6+ {[%clk 0:01:51]}  Kb7 {[%clk 0:00:30]} 39. Rxe5 {[%clk 0:01:52]}  Ra8 {[%clk 0:00:27]} 40. c4 {[%clk 0:01:46]}  Ra3+ {[%clk 0:00:25]} 41. Kd2 {[%clk 0:01:37]}  Rxa2+ {[%clk 0:00:24]} 42. Kc3 {[%clk 0:01:37]}  Ra3+ {[%clk 0:00:24]} 43. Kb4 {[%clk 0:01:37]}  Rxh3 {[%clk 0:00:23]} 44. Re7+ {[%clk 0:01:38]}  Kc8 {[%clk 0:00:17]} 45. b6 {[%clk 0:01:38]} 1-0


[Site "https://www.chess.com"]

[Event "Titled Tuesday Blitz May 10 Late 2022"]
[White "Bortnyk, Olexandr"]
[Black "Rosen, Eric"]
[WhiteFideId "14120828"]
[BlackFideId "2032562"]
[WhiteElo "2723"]
[BlackElo "2362"]
[Result "1-0"]
[Round "03"]
[TimeControl "180+1"]
[Date "2022.05.10"]
[WhiteClock "0:01:57"]
[BlackClock "0:00:01"]

1. d4 {[%clk 0:03:00]}  d5 {[%clk 0:02:59]} 2. Nc3 {[%clk 0:03:01]}  Nf6 {[%clk 0:02:57]} 3. Bf4 {[%clk 0:03:01]}  c5 {[%clk 0:02:57]} 4. e4 {[%clk 0:03:01]}  Nxe4 {[%clk 0:02:56]} 5. Nxe4 {[%clk 0:03:01]}  dxe4 {[%clk 0:02:57]} 6. dxc5 {[%clk 0:03:02]}  Qa5+ {[%clk 0:02:57]} 7. Qd2 {[%clk 0:03:01]}  Qxd2+ {[%clk 0:02:46]} 8. Kxd2 {[%clk 0:03:02]}  Nc6 {[%clk 0:02:47]} 9. Re1 {[%clk 0:03:02]}  Bf5 {[%clk 0:02:34]} 10. f3 {[%clk 0:02:59]}  O-O-O+ {[%clk 0:02:30]} 11. Kc1 {[%clk 0:03:00]}  e5 {[%clk 0:02:26]} 12. Bg5 {[%clk 0:02:45]}  f6 {[%clk 0:02:26]} 13. fxe4 {[%clk 0:02:46]}  Bxe4 {[%clk 0:01:59]} 14. Rxe4 {[%clk 0:02:46]}  fxg5 {[%clk 0:02:00]} 15. b4 {[%clk 0:02:46]}  a5 {[%clk 0:01:43]} 16. c3 {[%clk 0:02:38]}  axb4 {[%clk 0:01:42]} 17. cxb4 {[%clk 0:02:39]}  Rd4 {[%clk 0:01:33]} 18. Rxd4 {[%clk 0:02:39]}  exd4 {[%clk 0:01:30]} 19. a3 {[%clk 0:02:39]}  b6 {[%clk 0:01:23]} 20. cxb6 {[%clk 0:02:38]}  Kb7 {[%clk 0:01:21]} 21. Nf3 {[%clk 0:02:36]}  g4 {[%clk 0:01:08]} 22. Nd2 {[%clk 0:02:36]}  Kxb6 {[%clk 0:01:09]} 23. Nc4+ {[%clk 0:02:37]}  Kc7 {[%clk 0:01:09]} 24. Be2 {[%clk 0:02:37]}  h5 {[%clk 0:00:52]} 25. Rf1 {[%clk 0:02:37]}  Be7 {[%clk 0:00:53]} 26. Rf7 {[%clk 0:02:37]}  Rf8 {[%clk 0:00:53]} 27. Rxg7 {[%clk 0:02:37]}  Rf2 {[%clk 0:00:54]} 28. Bd3 {[%clk 0:02:36]}  Kd8 {[%clk 0:00:14]} 29. b5 {[%clk 0:02:35]}  Nb8 {[%clk 0:00:15]} 30. b6 {[%clk 0:02:32]}  Bf8 {[%clk 0:00:07]} 31. Ra7 {[%clk 0:02:13]}  Nc6 {[%clk 0:00:05]} 32. Ra8+ {[%clk 0:02:13]}  Kd7 {[%clk 0:00:06]} 33. b7 {[%clk 0:02:10]}  Bd6 {[%clk 0:00:05]} 34. Nxd6 {[%clk 0:02:07]}  Kxd6 {[%clk 0:00:06]} 35. Rc8 {[%clk 0:02:06]}  Nb8 {[%clk 0:00:02]} 36. Rxb8 {[%clk 0:02:05]}  Kc7 {[%clk 0:00:03]} 37. Rh8 {[%clk 0:02:02]}  Kxb7 {[%clk 0:00:03]} 38. Rxh5 {[%clk 0:02:03]}  Kb6 {[%clk 0:00:01]} 39. Rb5+ {[%clk 0:01:57]}  Kc6 {[%clk 0:00:01]} 40. Rb2 {[%clk 0:01:57]}  Rf1+ {[%clk 0:00:01]} 41. Bxf1 {[%clk 0:01:57]} 1-0


[Site "https://www.chess.com"]

[Event "Titled Tuesday Blitz May 10 Late 2022"]
[White "Butti, Enrique"]
[Black "Sernecki, Franciszek"]
[WhiteFideId "3700470"]
[BlackFideId "1169297"]
[WhiteElo "2080"]
[BlackElo "2189"]
[Result "0-1"]
[Round "03"]
[TimeControl "180+1"]
[Date "2022.05.11"]
[WhiteClock "0:02:17"]
[BlackClock "0:01:42"]

1. d4 {[%clk 0:02:58]}  e6 {[%clk 0:02:57]} 2. Nf3 {[%clk 0:02:58]}  Nf6 {[%clk 0:02:56]} 3. e3 {[%clk 0:02:57]}  d5 {[%clk 0:02:56]} 4. Bd3 {[%clk 0:02:57]}  c5 {[%clk 0:02:53]} 5. b3 {[%clk 0:02:56]}  Nc6 {[%clk 0:02:52]} 6. O-O {[%clk 0:02:55]}  b6 {[%clk 0:02:47]} 7. a3 {[%clk 0:02:53]}  Bb7 {[%clk 0:02:47]} 8. Bb2 {[%clk 0:02:53]}  Rc8 {[%clk 0:02:47]} 9. Nbd2 {[%clk 0:02:51]}  Bd6 {[%clk 0:02:43]} 10. Ne5 {[%clk 0:02:49]}  O-O {[%clk 0:02:38]} 11. f4 {[%clk 0:02:48]}  Ne7 {[%clk 0:02:04]} 12. Qf3 {[%clk 0:02:37]}  Qc7 {[%clk 0:01:48]} 13. Rac1 {[%clk 0:02:17]}  c4 {[%clk 0:01:42]} 0-1


[Site "https://www.chess.com"]

[Event "Titled Tuesday Blitz May 10 Late 2022"]
[White "Castellanos Hernandez, Emilio Au"]
[Black "Malka, Samuel"]
[WhiteFideId "5114179"]
[BlackFideId "20643675"]
[WhiteElo "2021"]
[BlackElo "2557"]
[Result "0-1"]
[Round "03"]
[TimeControl "180+1"]
[Date "2022.05.11"]
[WhiteClock "0:00:48"]
[BlackClock "0:00:12"]

1. Nf3 {[%clk 0:02:59]}  Nf6 {[%clk 0:02:56]} 2. g3 {[%clk 0:03:00]}  g6 {[%clk 0:02:55]} 3. Bg2 {[%clk 0:03:00]}  Bg7 {[%clk 0:02:55]} 4. O-O {[%clk 0:02:57]}  O-O {[%clk 0:02:55]} 5. c4 {[%clk 0:02:57]}  c5 {[%clk 0:02:54]} 6. Nc3 {[%clk 0:02:57]}  Nc6 {[%clk 0:02:54]} 7. e3 {[%clk 0:02:57]}  d5 {[%clk 0:02:53]} 8. b3 {[%clk 0:02:55]}  dxc4 {[%clk 0:02:36]} 9. bxc4 {[%clk 0:02:54]}  Be6 {[%clk 0:02:37]} 10. d3 {[%clk 0:02:54]}  Qd7 {[%clk 0:02:30]} 11. Qe2 {[%clk 0:02:49]}  Rfd8 {[%clk 0:02:24]} 12. Rd1 {[%clk 0:02:48]}  Rac8 {[%clk 0:01:57]} 13. Rb1 {[%clk 0:02:44]}  b6 {[%clk 0:01:50]} 14. a3 {[%clk 0:02:37]}  Ng4 {[%clk 0:01:48]} 15. Bb2 {[%clk 0:02:34]}  Nge5 {[%clk 0:01:48]} 16. Nxe5 {[%clk 0:02:31]}  Nxe5 {[%clk 0:01:49]} 17. Nd5 {[%clk 0:02:29]}  Bg4 {[%clk 0:01:41]} 18. f3 {[%clk 0:02:27]}  Be6 {[%clk 0:01:40]} 19. Nf4 {[%clk 0:02:22]}  g5 {[%clk 0:01:17]} 20. Nxe6 {[%clk 0:02:19]}  Qxe6 {[%clk 0:01:18]} 21. f4 {[%clk 0:02:09]}  Ng4 {[%clk 0:01:08]} 22. Bh3 {[%clk 0:01:57]}  Qxe3+ {[%clk 0:01:03]} 23. Qxe3 {[%clk 0:01:55]}  Nxe3 {[%clk 0:01:03]} 24. Re1 {[%clk 0:01:51]}  g4 {[%clk 0:00:37]} 25. Rxe3 {[%clk 0:01:43]}  gxh3 {[%clk 0:00:35]} 26. Bxg7 {[%clk 0:01:42]}  Kxg7 {[%clk 0:00:36]} 27. Kf2 {[%clk 0:01:39]}  e6 {[%clk 0:00:35]} 28. g4 {[%clk 0:01:39]}  Rd4 {[%clk 0:00:34]} 29. Kg3 {[%clk 0:01:30]}  Rcd8 {[%clk 0:00:34]} 30. Rb3 {[%clk 0:01:30]}  h5 {[%clk 0:00:19]} 31. gxh5 {[%clk 0:01:28]}  Kh6 {[%clk 0:00:19]} 32. Rf3 {[%clk 0:01:27]}  Kxh5 {[%clk 0:00:18]} 33. Kxh3 {[%clk 0:01:28]}  Rg8 {[%clk 0:00:18]} 34. Rg3 {[%clk 0:01:27]}  Rg6 {[%clk 0:00:15]} 35. Rxg6 {[%clk 0:01:25]}  Kxg6 {[%clk 0:00:16]} 36. Kg3 {[%clk 0:01:23]}  Kf5 {[%clk 0:00:16]} 37. a4 {[%clk 0:01:20]}  Rxf4 {[%clk 0:00:12]} 38. a5 {[%clk 0:01:21]}  Rd4 {[%clk 0:00:13]} 39. axb6 {[%clk 0:01:17]}  axb6 {[%clk 0:00:14]} 40. h4 {[%clk 0:01:17]}  Kg6 {[%clk 0:00:13]} 41. Kh3 {[%clk 0:01:16]}  Rd6 {[%clk 0:00:13]} 42. Kg4 {[%clk 0:01:15]}  Rd4+ {[%clk 0:00:13]} 43. Kg3 {[%clk 0:01:14]}  Kh5 {[%clk 0:00:12]} 44. Rxb6 {[%clk 0:01:12]}  Rxd3+ {[%clk 0:00:13]} 45. Kf4 {[%clk 0:01:11]}  Rd4+ {[%clk 0:00:13]} 46. Ke5 {[%clk 0:01:12]}  Rxc4 {[%clk 0:00:13]} 47. Rc6 {[%clk 0:01:10]}  Kxh4 {[%clk 0:00:10]} 48. Kf6 {[%clk 0:01:11]}  Rf4+ {[%clk 0:00:09]} 49. Ke5 {[%clk 0:01:11]}  Rf5+ {[%clk 0:00:09]} 50. Ke4 {[%clk 0:01:11]}  Kg4 {[%clk 0:00:10]} 51. Rc8 {[%clk 0:01:11]}  Kg5 {[%clk 0:00:10]} 52. Rc6 {[%clk 0:01:06]}  Kf6 {[%clk 0:00:10]} 53. Rc7 {[%clk 0:01:05]}  Rd5 {[%clk 0:00:10]} 54. Rc8 {[%clk 0:01:05]}  Ke7 {[%clk 0:00:08]} 55. Ke3 {[%clk 0:01:05]}  f5 {[%clk 0:00:08]} 56. Rh8 {[%clk 0:01:04]}  Kf6 {[%clk 0:00:08]} 57. Rh6+ {[%clk 0:01:03]}  Ke5 {[%clk 0:00:08]} 58. Rh5 {[%clk 0:01:03]}  Rd6 {[%clk 0:00:09]} 59. Rh8 {[%clk 0:01:03]}  Ra6 {[%clk 0:00:09]} 60. Rc8 {[%clk 0:01:02]}  Ra3+ {[%clk 0:00:10]} 61. Kd2 {[%clk 0:01:02]}  Ra5 {[%clk 0:00:10]} 62. Ke3 {[%clk 0:01:01]}  f4+ {[%clk 0:00:10]} 63. Kf3 {[%clk 0:01:00]}  Ra3+ {[%clk 0:00:10]} 64. Kf2 {[%clk 0:00:59]}  Rc3 {[%clk 0:00:11]} 65. Ke2 {[%clk 0:00:57]}  Ke4 {[%clk 0:00:10]} 66. Kd2 {[%clk 0:00:55]}  Rd3+ {[%clk 0:00:11]} 67. Ke2 {[%clk 0:00:54]}  Rd5 {[%clk 0:00:11]} 68. Rf8 {[%clk 0:00:52]}  e5 {[%clk 0:00:12]} 69. Rf7 {[%clk 0:00:52]}  Rd4 {[%clk 0:00:12]} 70. Rf8 {[%clk 0:00:52]}  Rc4 {[%clk 0:00:12]} 71. Kd2 {[%clk 0:00:50]}  f3 {[%clk 0:00:13]} 72. Rf7 {[%clk 0:00:50]}  Ra4 {[%clk 0:00:12]} 73. Rc7 {[%clk 0:00:48]}  Ra2+ {[%clk 0:00:13]} 74. Ke1 {[%clk 0:00:48]}  Ke3 {[%clk 0:00:12]} 0-1


[Site "https://www.chess.com"]

[Event "Titled Tuesday Blitz May 10 Late 2022"]
[White "Chen, Justin"]
[Black "Boruchovsky, Avital"]
[WhiteFideId "2098199"]
[BlackFideId "2800055"]
[WhiteElo "2490"]
[BlackElo "2469"]
[Result "0-1"]
[Round "03"]
[TimeControl "180+1"]
[Date "2022.05.11"]
[WhiteClock "0:00:01"]
[BlackClock "0:00:16"]

1. Nf3 {[%clk 0:03:00]}  c5 {[%clk 0:02:58]} 2. e3 {[%clk 0:02:59]}  Nc6 {[%clk 0:02:58]} 3. d4 {[%clk 0:02:59]}  e6 {[%clk 0:02:59]} 4. b3 {[%clk 0:02:57]}  Nf6 {[%clk 0:02:59]} 5. Bb2 {[%clk 0:02:57]}  a6 {[%clk 0:02:59]} 6. Nbd2 {[%clk 0:02:54]}  cxd4 {[%clk 0:02:59]} 7. Nxd4 {[%clk 0:02:54]}  b5 {[%clk 0:02:58]} 8. c4 {[%clk 0:02:41]}  Nxd4 {[%clk 0:02:56]} 9. Bxd4 {[%clk 0:02:39]}  bxc4 {[%clk 0:02:50]} 10. Bxc4 {[%clk 0:02:38]}  Bb7 {[%clk 0:02:47]} 11. O-O {[%clk 0:02:37]}  Be7 {[%clk 0:02:46]} 12. Rc1 {[%clk 0:02:35]}  O-O {[%clk 0:02:45]} 13. Qe2 {[%clk 0:02:34]}  Qa5 {[%clk 0:02:45]} 14. Nf3 {[%clk 0:02:13]}  Rfc8 {[%clk 0:02:39]} 15. Bd3 {[%clk 0:02:03]}  Ba3 {[%clk 0:02:30]} 16. Rcd1 {[%clk 0:01:58]}  Bc5 {[%clk 0:02:01]} 17. Bxf6 {[%clk 0:01:21]}  gxf6 {[%clk 0:02:02]} 18. Nh4 {[%clk 0:01:21]}  Be7 {[%clk 0:01:56]} 19. Qg4+ {[%clk 0:00:10]}  Qg5 {[%clk 0:01:52]} 20. Qh3 {[%clk 0:00:09]}  f5 {[%clk 0:01:41]} 21. Nxf5 {[%clk 0:00:02]}  exf5 {[%clk 0:01:37]} 22. Bxf5 {[%clk 0:00:03]}  Kf8 {[%clk 0:00:37]} 23. Rxd7 {[%clk 0:00:03]}  Bc6 {[%clk 0:00:37]} 24. Rxe7 {[%clk 0:00:03]}  Kxe7 {[%clk 0:00:36]} 25. Bxc8 {[%clk 0:00:02]}  Rxc8 {[%clk 0:00:36]} 26. f4 {[%clk 0:00:02]}  Qg7 {[%clk 0:00:29]} 27. Rc1 {[%clk 0:00:01]}  Bd7 {[%clk 0:00:23]} 28. Qh4+ {[%clk 0:00:01]}  Qf6 {[%clk 0:00:23]} 29. Qxf6+ {[%clk 0:00:02]}  Kxf6 {[%clk 0:00:23]} 30. Rxc8 {[%clk 0:00:02]}  Bxc8 {[%clk 0:00:24]} 31. e4 {[%clk 0:00:03]}  Bb7 {[%clk 0:00:24]} 32. e5+ {[%clk 0:00:02]}  Kf5 {[%clk 0:00:24]} 33. g3 {[%clk 0:00:03]}  Ke4 {[%clk 0:00:23]} 34. Kf2 {[%clk 0:00:03]}  h5 {[%clk 0:00:20]} 35. Ke2 {[%clk 0:00:02]}  Bc6 {[%clk 0:00:19]} 36. Kf2 {[%clk 0:00:01]}  Bb5 {[%clk 0:00:19]} 37. a3 {[%clk 0:00:01]}  Bd3 {[%clk 0:00:19]} 38. Ke1 {[%clk 0:00:01]}  Ke3 {[%clk 0:00:19]} 39. b4 {[%clk 0:00:01]}  Bb5 {[%clk 0:00:16]} 0-1


[Site "https://www.chess.com"]

[Event "Titled Tuesday Blitz May 10 Late 2022"]
[White "Chyngyz, Sultai"]
[Black "Grave, Jacob Templen"]
[WhiteFideId "13803158"]
[BlackFideId "1542656"]
[WhiteElo "1365"]
[BlackElo "1737"]
[Result "0-1"]
[Round "03"]
[TimeControl "180+1"]
[Date "2022.05.11"]
[WhiteClock "0:00:33"]
[BlackClock "0:00:04"]

1. e4 {[%clk 0:03:00]}  g6 {[%clk 0:02:53]} 2. d4 {[%clk 0:03:00]}  Bg7 {[%clk 0:02:53]} 3. Nf3 {[%clk 0:03:01]}  c6 {[%clk 0:02:53]} 4. Bd3 {[%clk 0:03:00]}  d5 {[%clk 0:02:52]} 5. e5 {[%clk 0:02:59]}  Bg4 {[%clk 0:02:52]} 6. h3 {[%clk 0:02:58]}  Bxf3 {[%clk 0:02:51]} 7. Qxf3 {[%clk 0:02:59]}  c5 {[%clk 0:02:49]} 8. c3 {[%clk 0:02:58]}  Nc6 {[%clk 0:02:47]} 9. Be3 {[%clk 0:02:56]}  e6 {[%clk 0:02:42]} 10. O-O {[%clk 0:02:35]}  Nge7 {[%clk 0:02:31]} 11. Nd2 {[%clk 0:02:35]}  cxd4 {[%clk 0:02:30]} 12. cxd4 {[%clk 0:02:35]}  O-O {[%clk 0:02:00]} 13. Rac1 {[%clk 0:02:31]}  f6 {[%clk 0:01:59]} 14. exf6 {[%clk 0:02:25]}  Bxf6 {[%clk 0:01:53]} 15. Qg4 {[%clk 0:02:24]}  Nf5 {[%clk 0:01:49]} 16. Bxf5 {[%clk 0:02:22]}  exf5 {[%clk 0:01:49]} 17. Qf4 {[%clk 0:02:22]}  Qb8 {[%clk 0:01:31]} 18. Qxb8 {[%clk 0:02:16]}  Raxb8 {[%clk 0:01:32]} 19. Nb3 {[%clk 0:02:15]}  Rfe8 {[%clk 0:01:26]} 20. Rfe1 {[%clk 0:02:11]}  Kf7 {[%clk 0:01:21]} 21. f3 {[%clk 0:02:06]}  Re7 {[%clk 0:01:13]} 22. Kf2 {[%clk 0:02:02]}  Rbe8 {[%clk 0:01:11]} 23. g3 {[%clk 0:01:58]}  g5 {[%clk 0:01:01]} 24. f4 {[%clk 0:01:38]}  gxf4 {[%clk 0:01:00]} 25. Bxf4 {[%clk 0:01:37]}  Nxd4 {[%clk 0:00:55]} 26. Nxd4 {[%clk 0:01:31]}  Bxd4+ {[%clk 0:00:54]} 27. Kf1 {[%clk 0:01:29]}  Rxe1+ {[%clk 0:00:51]} 28. Rxe1 {[%clk 0:01:28]}  Rxe1+ {[%clk 0:00:51]} 29. Kxe1 {[%clk 0:01:29]}  Bxb2 {[%clk 0:00:52]} 30. Kd2 {[%clk 0:01:28]}  Ke6 {[%clk 0:00:49]} 31. Kc2 {[%clk 0:01:27]}  Be5 {[%clk 0:00:49]} 32. Be3 {[%clk 0:01:27]}  d4 {[%clk 0:00:46]} 33. Bf2 {[%clk 0:01:27]}  Kd5 {[%clk 0:00:46]} 34. Kd3 {[%clk 0:01:28]}  b5 {[%clk 0:00:43]} 35. Be1 {[%clk 0:01:27]}  Bd6 {[%clk 0:00:29]} 36. Ba5 {[%clk 0:01:19]}  Bxg3 {[%clk 0:00:27]} 37. Bd8 {[%clk 0:01:15]}  a6 {[%clk 0:00:24]} 38. Bf6 {[%clk 0:01:15]}  Be5 {[%clk 0:00:24]} 39. Bg5 {[%clk 0:01:11]}  f4 {[%clk 0:00:18]} 40. Bh4 {[%clk 0:01:12]}  f3 {[%clk 0:00:17]} 41. Bf2 {[%clk 0:01:13]}  a5 {[%clk 0:00:16]} 42. a3 {[%clk 0:01:12]}  Bd6 {[%clk 0:00:12]} 43. Bxd4 {[%clk 0:01:11]}  Bc5 {[%clk 0:00:10]} 44. Bc3 {[%clk 0:01:11]}  f2 {[%clk 0:00:09]} 45. Ke2 {[%clk 0:01:10]}  Bxa3 {[%clk 0:00:05]} 46. Bxa5 {[%clk 0:01:09]}  b4 {[%clk 0:00:02]} 47. Kxf2 {[%clk 0:01:09]}  b3 {[%clk 0:00:02]} 48. Bc3 {[%clk 0:01:00]}  Bc5+ {[%clk 0:00:03]} 49. Kf3 {[%clk 0:00:59]}  Bd4 {[%clk 0:00:04]} 50. Ke2 {[%clk 0:00:28]}  Bxc3 {[%clk 0:00:03]} 51. Kd3 {[%clk 0:00:28]}  Be5 {[%clk 0:00:03]} 52. h4 {[%clk 0:00:28]}  h5 {[%clk 0:00:03]} 53. Kd2 {[%clk 0:00:28]}  Bf6 {[%clk 0:00:03]} 54. Kc1 {[%clk 0:00:28]}  Kc4 {[%clk 0:00:03]} 55. Kb1 {[%clk 0:00:28]}  Bxh4 {[%clk 0:00:03]} 56. Kb2 {[%clk 0:00:29]}  Bf6+ {[%clk 0:00:03]} 57. Ka3 {[%clk 0:00:29]}  h4 {[%clk 0:00:04]} 58. Ka4 {[%clk 0:00:28]}  h3 {[%clk 0:00:05]} 59. Ka3 {[%clk 0:00:29]}  h2 {[%clk 0:00:05]} 60. Ka4 {[%clk 0:00:30]}  h1=Q {[%clk 0:00:05]} 61. Ka5 {[%clk 0:00:30]}  Qa8+ {[%clk 0:00:04]} 62. Kb6 {[%clk 0:00:31]}  b2 {[%clk 0:00:04]} 63. Kc7 {[%clk 0:00:32]}  b1=Q {[%clk 0:00:04]} 64. Kd6 {[%clk 0:00:33]}  Qb6+ {[%clk 0:00:04]} 65. Kd7 {[%clk 0:00:33]}  Qd5+ {[%clk 0:00:04]} 66. Ke8 {[%clk 0:00:33]}  Qbd8# {[%clk 0:00:04]} 0-1


[Site "https://www.chess.com"]

[Event "Titled Tuesday Blitz May 10 Late 2022"]
[White "Curtis, John"]
[Black "Dimakiling, Oliver"]
[WhiteFideId "3200256"]
[BlackFideId "5202248"]
[WhiteElo "2203"]
[BlackElo "2426"]
[Result "0-1"]
[Round "03"]
[TimeControl "180+1"]
[Date "2022.05.10"]
[WhiteClock "0:00:01"]
[BlackClock "0:00:31"]

1. e4 {[%clk 0:03:00]}  g6 {[%clk 0:02:59]} 2. d4 {[%clk 0:02:58]}  Bg7 {[%clk 0:02:59]} 3. Nf3 {[%clk 0:02:58]}  d6 {[%clk 0:02:59]} 4. Be2 {[%clk 0:02:57]}  Nf6 {[%clk 0:02:58]} 5. Nc3 {[%clk 0:02:57]}  O-O {[%clk 0:02:58]} 6. O-O {[%clk 0:02:56]}  c6 {[%clk 0:02:58]} 7. a4 {[%clk 0:02:55]}  a5 {[%clk 0:02:58]} 8. h3 {[%clk 0:02:48]}  Na6 {[%clk 0:02:58]} 9. Re1 {[%clk 0:02:47]}  Qc7 {[%clk 0:02:56]} 10. Bg5 {[%clk 0:02:22]}  e5 {[%clk 0:02:55]} 11. dxe5 {[%clk 0:02:21]}  dxe5 {[%clk 0:02:54]} 12. Bxa6 {[%clk 0:02:21]}  Rxa6 {[%clk 0:02:53]} 13. Qc1 {[%clk 0:02:08]}  Re8 {[%clk 0:02:50]} 14. Bh6 {[%clk 0:02:08]}  Bh8 {[%clk 0:02:50]} 15. Rd1 {[%clk 0:02:07]}  Rb6 {[%clk 0:02:46]} 16. b3 {[%clk 0:02:05]}  Rb4 {[%clk 0:02:46]} 17. Qe3 {[%clk 0:01:56]}  Nh5 {[%clk 0:02:33]} 18. Na2 {[%clk 0:01:50]}  Rb6 {[%clk 0:02:31]} 19. Qc5 {[%clk 0:01:27]}  Ra6 {[%clk 0:02:13]} 20. Qd6 {[%clk 0:01:21]}  Qxd6 {[%clk 0:02:09]} 21. Rxd6 {[%clk 0:01:20]}  Be6 {[%clk 0:02:09]} 22. Rad1 {[%clk 0:01:19]}  f6 {[%clk 0:02:06]} 23. Rxe6 {[%clk 0:01:10]}  Rxe6 {[%clk 0:02:05]} 24. Rd8+ {[%clk 0:01:09]}  Kf7 {[%clk 0:02:05]} 25. Rxh8 {[%clk 0:01:10]}  Rd6 {[%clk 0:01:58]} 26. Nc3 {[%clk 0:01:03]}  Nf4 {[%clk 0:01:53]} 27. Bxf4 {[%clk 0:00:48]}  exf4 {[%clk 0:01:53]} 28. Rxh7+ {[%clk 0:00:48]}  Ke6 {[%clk 0:01:52]} 29. h4 {[%clk 0:00:37]}  b6 {[%clk 0:01:47]} 30. e5 {[%clk 0:00:36]}  fxe5 {[%clk 0:01:46]} 31. Ng5+ {[%clk 0:00:36]}  Kf5 {[%clk 0:01:42]} 32. f3 {[%clk 0:00:31]}  Rf6 {[%clk 0:01:33]} 33. Nce4 {[%clk 0:00:31]}  Rf8 {[%clk 0:01:32]} 34. Rc7 {[%clk 0:00:20]}  b5 {[%clk 0:01:31]} 35. Nh7 {[%clk 0:00:17]}  Rd8 {[%clk 0:01:27]} 36. Rf7+ {[%clk 0:00:12]}  Ke6 {[%clk 0:01:27]} 37. Nhg5+ {[%clk 0:00:12]}  Kd5 {[%clk 0:01:27]} 38. Rf6 {[%clk 0:00:10]}  bxa4 {[%clk 0:01:26]} 39. bxa4 {[%clk 0:00:09]}  Rb6 {[%clk 0:01:26]} 40. Rxg6 {[%clk 0:00:09]}  Rb2 {[%clk 0:01:18]} 41. Nf7 {[%clk 0:00:07]}  Rc8 {[%clk 0:01:08]} 42. Rd6+ {[%clk 0:00:07]}  Kc4 {[%clk 0:01:08]} 43. Nxe5+ {[%clk 0:00:06]}  Kb4 {[%clk 0:01:08]} 44. Rd4+ {[%clk 0:00:03]}  Ka3 {[%clk 0:01:07]} 45. Nc4+ {[%clk 0:00:02]}  Ka2 {[%clk 0:01:08]} 46. Nxb2 {[%clk 0:00:02]}  Kxb2 {[%clk 0:01:09]} 47. Rc4 {[%clk 0:00:02]}  Ka3 {[%clk 0:01:07]} 48. Kh2 {[%clk 0:00:01]}  Rh8 {[%clk 0:01:07]} 49. Kh3 {[%clk 0:00:02]}  Rh6 {[%clk 0:01:06]} 50. Kg4 {[%clk 0:00:03]}  Rg6+ {[%clk 0:01:06]} 51. Kxf4 {[%clk 0:00:04]}  Rxg2 {[%clk 0:01:06]} 52. Ke3 {[%clk 0:00:05]}  Rh2 {[%clk 0:01:06]} 53. Rc5 {[%clk 0:00:06]}  Rxh4 {[%clk 0:01:05]} 54. Rxa5 {[%clk 0:00:07]}  Kb4 {[%clk 0:01:03]} 55. Rc5 {[%clk 0:00:08]}  Rh6 {[%clk 0:01:01]} 56. Rxc6 {[%clk 0:00:09]}  Rxc6 {[%clk 0:01:00]} 57. Nf2 {[%clk 0:00:08]}  Rxc2 {[%clk 0:01:00]} 58. Nd3+ {[%clk 0:00:08]}  Kxa4 {[%clk 0:01:00]} 59. f4 {[%clk 0:00:07]}  Kb5 {[%clk 0:01:00]} 60. Kd4 {[%clk 0:00:06]}  Re2 {[%clk 0:00:58]} 61. f5 {[%clk 0:00:06]}  Kc6 {[%clk 0:00:58]} 62. Nf4 {[%clk 0:00:06]}  Re1 {[%clk 0:00:57]} 63. f6 {[%clk 0:00:05]}  Kd7 {[%clk 0:00:56]} 64. f7 {[%clk 0:00:06]}  Ke7 {[%clk 0:00:55]} 65. Nd3 {[%clk 0:00:06]}  Re6 {[%clk 0:00:52]} 66. Ne5 {[%clk 0:00:06]}  Rf6 {[%clk 0:00:49]} 67. Kd5 {[%clk 0:00:06]}  Rf5 {[%clk 0:00:46]} 68. Ke4 {[%clk 0:00:05]}  Ke6 {[%clk 0:00:46]} 69. Nc6 {[%clk 0:00:03]}  Rf1 {[%clk 0:00:43]} 70. Ne5 {[%clk 0:00:01]}  Rf2 {[%clk 0:00:32]} 71. Kd4 {[%clk 0:00:01]}  Rf4+ {[%clk 0:00:31]} 0-1


[Site "https://www.chess.com"]